bitfinex-derivatives/quotes_SOLF0:USTF0_20251023
["timestamp","ask_amount","ask_price","bid_price","bid_amount"]
[1761246541043,4.96784565,191.17,191.15,2.85]
[1761246541341,4.96784565,191.16,191.15,2.85]
[1761246541542,4.96784565,191.17,191.15,2.85]
[1761246543450,11.69360899,191.19,191.15,2.85]
[1761246543637,2.64,191.15,191.08,2.85]
[1761246543845,2.74397394,191.09,190.98,2.85]
[1761246544244,7.71181959,191.09,190.98,2.85]
[1761246544449,5.38397394,191.09,190.98,2.85]
[1761246544638,2.74397394,191.09,191.04,4.7097]
[1761246544841,2.64,191.08,191.04,7.5597]
[1761246545444,2.64,191.07,191.04,7.5597]
[1761246546246,2.74397394,191.09,191.04,7.5597]
[1761246546448,5.38397394,191.09,191.05,2.85]
[1761246546648,7.71367218,191.09,191.05,2.85]
[1761246546850,2.74397394,191.09,191.05,2.85]
[1761246547545,2.74397394,191.09,191.06,2.85]
[1761246548551,4.9700729,191.09,191.07,2.85]
[1761246548749,2.74397394,191.11,191.07,2.85]
[1761246549051,10.35404684,191.11,191.07,2.85]
[1761246549251,5.38397394,191.11,191.07,2.85]
[1761246550354,10.35556606,191.11,191.07,2.85]
[1761246550553,7.61275059,191.1,191.06,7.5592]
[1761246550754,2.64,191.1,191.06,7.5592]
[1761246551565,7.61302005,191.1,191.06,7.5592]
[1761246551758,2.64,191.1,191.06,7.5592]
[1761246552663,1.75283337,191.08,191.07,2.85]
[1761246554666,1.75283337,191.09,191.07,2.85]
[1761246555961,2.64,191.08,190.92,2.85]
[1761246556169,1.75283337,190.99,190.92,2.85]
[1761246556559,1.75283337,190.99,190.97,4.7114]
[1761246556755,1.75283337,191.03,190.98,2.85]
[1761246557066,1.75283337,191.04,190.98,2.85]
[1761246557457,1.75283337,191.04,191.02,2.85]
[1761246558064,1.75283337,191.04,191.01,4.7104]
[1761246558458,1.75283337,191.04,191.01,7.5604]
[1761246559168,1.75283337,191.02,190.98,2.85]
[1761246560163,1.75283337,191.04,190.98,2.85]
[1761246560963,1.75283337,191.04,190.99,4.7109]
[1761246561168,4.39283337,191.04,191.0,2.85]
[1761246561366,2.64,191.1,191.0,2.85]
[1761246561563,1.75283337,191.07,191.0,2.85]
[1761246561761,1.75283337,191.07,191.03,2.85]
[1761246561958,13.45854454,191.1,191.03,2.85]
[1761246562166,1.75283337,191.08,191.03,2.85]
[1761246562363,4.39283337,191.08,191.03,2.85]
[1761246562764,11.70793925,191.12,191.03,4.60283337]
[1761246563069,4.97600835,191.11,191.04,2.85]
[1761246563566,4.39283337,191.12,191.04,2.85]
[1761246564274,9.36884172,191.12,191.04,2.85]
[1761246564474,4.39283337,191.12,191.04,2.85]
[1761246565869,9.37140218,191.12,191.04,2.85]
[1761246566070,2.64,191.11,191.08,4.7088]
[1761246566665,2.64,191.11,191.09,4.7084]
[1761246566972,9.07576801,191.13,191.1,2.6]
[1761246567175,2.8,191.14,191.1,2.6]
[1761246567373,4.55283337,191.16,191.11,2.6]
[1761246567565,2.8,191.16,191.11,2.6]
[1761246567873,2.8,191.15,191.11,2.6]
[1761246568074,5.15892493,191.14,191.11,2.6]
[1761246568975,5.15892493,191.14,191.12,4.7076]
[1761246569974,5.15892493,191.14,191.12,7.3776]
[1761246570380,2.75,191.16,191.14,4.7073]
[1761246570579,5.15892493,191.15,191.14,4.7073]
[1761246570880,5.15892493,191.15,191.14,7.3773]
[1761246571078,9.25669818,191.18,191.16,4.7068]
[1761246571279,5.15892493,191.17,191.16,4.7068]
[1761246571678,5.15892493,191.18,191.16,4.7068]
[1761246571980,5.15892493,191.19,191.18,4.7064]
[1761246572283,8.03892493,191.19,191.14,1.75283337]
[1761246572484,5.15892493,191.18,191.14,4.50283337]
[1761246572783,5.15892493,191.17,191.16,4.7068]
[1761246573075,4.63283337,191.18,191.16,4.7068]
[1761246573272,5.15892493,191.17,191.16,4.7068]
[1761246574676,5.15892493,191.17,191.16,7.4568]
[1761246574873,1.75283337,191.2,191.16,7.4568]
[1761246575179,5.15892493,191.19,191.17,4.7065]
[1761246575478,5.15892493,191.18,191.17,4.7065]
[1761246575679,5.15892493,191.19,191.17,4.7065]
[1761246575878,5.15892493,191.18,191.17,4.7065]
[1761246576082,5.15892493,191.19,191.17,4.7065]
[1761246576886,8.03892493,191.19,191.17,4.7065]
[1761246579086,2.88,191.17,191.1,2.75]
[1761246579284,1.75283337,191.12,191.06,2.75]
[1761246581082,4.63283337,191.12,191.09,4.7084]
[1761246581289,2.88,191.11,191.06,2.75]
[1761246582190,1.75283337,191.1,191.06,2.75]
[1761246582381,1.75283337,191.11,191.08,4.7087]
[1761246582587,1.75283337,191.11,191.08,7.4587]
[1761246583382,1.75283337,191.11,191.09,4.7085]
[1761246587489,4.63283337,191.11,191.09,4.7085]
[1761246588686,1.75283337,191.11,191.09,4.7085]
[1761246588886,6.91036658,191.11,191.09,4.7085]
[1761246589086,1.75283337,191.11,191.09,4.7085]
[1761246589493,6.91036658,191.11,191.09,4.7085]
[1761246589694,1.75283337,191.11,191.09,4.7085]
[1761246589894,1.75283337,191.11,191.09,7.4585]
[1761246590094,6.91036658,191.11,191.09,7.4585]
[1761246590292,6.91036658,191.13,191.12,2.75]
[1761246590496,8.03753321,191.16,191.12,2.75]
[1761246590696,5.15753321,191.15,191.12,2.75]
[1761246590993,5.15753321,191.14,191.12,2.75]
[1761246591196,8.03753321,191.15,191.08,1.75283337]
[1761246591389,5.15753321,191.14,191.09,2.75]
[1761246591589,2.88,191.14,191.09,2.75]
[1761246591990,8.03753321,191.14,191.12,4.7077]
[1761246592193,1.75283337,191.16,191.12,4.7077]
[1761246592391,8.03771976,191.15,191.12,4.7077]
[1761246592596,5.15771976,191.14,191.12,4.7077]
[1761246592993,5.15771976,191.14,191.12,7.4577]
[1761246593188,5.15771976,191.14,191.12,4.7077]
[1761246593394,8.03771976,191.14,191.12,4.7077]
[1761246593594,2.88,191.14,191.12,4.7077]
[1761246594092,8.03794209,191.14,191.12,4.7077]
[1761246594295,2.88,191.14,191.12,4.7077]
[1761246594695,8.03792327,191.14,191.12,4.7077]
[1761246594894,2.88,191.14,191.12,4.7077]
[1761246595296,8.03792327,191.14,191.12,4.7077]
[1761246595498,2.88,191.14,191.12,4.7077]
[1761246595893,8.03786848,191.14,191.12,4.7077]
[1761246596100,2.88,191.14,191.12,4.7077]
[1761246596501,8.03792089,191.14,191.12,4.7077]
[1761246596796,2.88,191.14,191.12,4.7077]
[1761246597193,2.88,191.13,191.12,4.7077]
[1761246597402,8.03791596,191.13,191.12,4.7077]
[1761246597701,2.88,191.12,191.1,4.7083]
[1761246597901,2.88,191.11,191.1,4.7083]
[1761246599001,2.88,191.11,191.08,4.7087]
[1761246599194,4.61283337,191.1,191.04,2.61]
[1761246600598,9.72538777,191.1,191.04,2.61]
[1761246600795,4.61283337,191.1,191.04,2.61]
[1761246600998,4.61283337,191.1,191.06,7.3192]
[1761246601200,2.86,191.1,191.06,2.61]
[1761246601399,7.9725934,191.11,191.06,2.61]
[1761246601601,7.9725934,191.11,191.0,9.4212]
[1761246601602,5.1125934,191.1,191.09,2.61]
[1761246601802,7.9725934,191.13,191.09,2.61]
[1761246602000,5.1125934,191.12,191.09,2.61]
[1761246602198,2.86,191.13,191.09,4.7085]
[1761246602398,9.72963773,191.12,191.09,4.7085]
[1761246602598,5.11680436,191.11,191.09,4.7085]
[1761246602998,7.97680436,191.1,191.07,4.709]
[1761246603204,2.86,191.1,191.07,4.709]
[1761246603396,2.86,191.1,191.06,2.61]
[1761246603601,7.97853644,191.1,191.06,2.61]
[1761246603998,5.11853644,191.1,191.06,2.61]
[1761246604202,4.61283337,191.13,191.06,2.61]
[1761246604397,5.11882583,191.12,191.06,2.61]
[1761246604601,5.11882583,191.11,191.06,2.61]
[1761246604802,4.61283337,191.13,191.06,2.61]
[1761246605003,5.11907299,191.12,191.09,7.3185]
[1761246605299,4.08272802,191.13,191.09,7.3185]
[1761246605602,5.12173589,191.12,191.09,4.7085]
[1761246605807,7.98173589,191.11,191.09,4.7085]
[1761246606011,5.12173589,191.1,191.09,4.7085]
[1761246608813,5.12173589,191.1,191.01,2.61]
[1761246608814,2.86,191.09,191.01,2.61]
[1761246609015,5.12173589,191.08,191.01,2.61]
[1761246609214,5.12173589,191.07,191.01,2.61]
[1761246609416,5.12173589,191.06,191.01,2.61]
[1761246609612,4.08639502,191.08,191.01,2.61]
[1761246609807,5.12340336,191.07,191.01,2.61]
[1761246610015,5.12340336,191.06,191.05,4.7095]
[1761246611413,5.12289416,191.06,191.05,4.7095]
[1761246611618,4.61283337,191.1,191.05,4.7095]
[1761246611619,2.86,191.09,191.05,4.7095]
[1761246611818,7.98286873,191.08,191.05,4.7095]
[1761246612014,5.12286873,191.07,191.05,4.7095]
[1761246612220,2.86,191.08,191.05,4.7095]
[1761246612416,5.12264748,191.07,191.05,4.7095]
[1761246612616,2.86,191.08,191.05,4.7095]
[1761246612822,5.12211038,191.07,191.05,7.3195]
[1761246613123,2.86,191.08,191.05,7.3195]
[1761246613323,5.12186565,191.07,191.05,7.3195]
[1761246613515,2.86,191.08,191.05,7.3195]
[1761246613823,5.1214019,191.07,191.05,7.3195]
[1761246614017,2.86,191.08,191.0,2.61]
[1761246614215,2.86,191.06,191.0,2.61]
[1761246614415,2.86,191.04,191.0,2.61]
[1761246614611,2.86,191.04,191.02,4.7102]
[1761246614815,2.86,191.06,191.02,4.7102]
[1761246615011,5.119315,191.05,191.03,2.61]
[1761246615222,2.86,191.06,191.03,2.61]
[1761246615518,5.11900802,191.05,191.03,2.61]
[1761246615817,2.86,191.1,191.03,2.61]
[1761246616021,5.11810129,191.09,191.03,2.61]
[1761246616221,5.11810129,191.08,191.03,2.61]
[1761246616422,2.86,191.1,191.03,2.61]
[1761246616622,5.11833108,191.09,191.03,2.61]
[1761246616818,4.84545821,191.14,191.07,2.61]
[1761246616819,5.11833108,191.08,191.07,2.61]
[1761246617225,9.20002401,191.12,191.07,2.61]
[1761246617426,5.11833108,191.11,191.07,2.61]
[1761246617724,5.11833108,191.1,191.07,2.61]
[1761246617920,4.08265755,191.13,191.07,2.61]
[1761246618125,5.1191968,191.12,191.09,7.3184]
[1761246618326,5.1191968,191.11,191.09,7.3184]
[1761246618526,5.1191968,191.1,191.09,7.3184]
[1761246618723,5.1191968,191.1,191.05,2.61]
[1761246618924,5.1191968,191.09,191.05,2.61]
[1761246619130,2.86,191.14,191.05,2.61]
[1761246619323,12.0645314,191.13,191.05,2.61]
[1761246619524,9.2045314,191.12,191.05,2.61]
[1761246619725,5.12071923,191.11,191.05,2.61]
[1761246620020,4.08381217,191.12,191.04,2.73871147]
[1761246620021,5.12071923,191.1,191.09,2.61]
[1761246620829,5.12071923,191.1,191.08,4.7087]
[1761246621127,5.12071923,191.09,191.08,4.7087]
[1761246621719,5.12071923,191.09,191.08,7.3187]
[1761246621920,2.86,191.16,191.11,4.708]
[1761246622120,6.94654778,191.15,191.11,7.318]
[1761246622327,4.08654778,191.14,191.11,7.318]
[1761246622533,2.86,191.15,191.11,7.318]
[1761246623020,2.86,191.14,191.11,7.318]
[1761246623218,6.94654778,191.14,191.11,7.318]
[1761246623431,2.86,191.14,191.11,7.318]
[1761246624117,6.94902029,191.14,191.11,7.318]
[1761246624319,2.86,191.14,191.11,7.318]
[1761246624922,4.08933395,191.13,191.12,7.3177]
[1761246625127,6.94933395,191.16,191.12,7.3177]
[1761246625330,4.08933395,191.15,191.09,2.61]
[1761246625524,4.08933395,191.16,191.09,2.61]
[1761246625727,4.08933395,191.15,191.13,4.7074]
[1761246625928,4.08933395,191.17,191.13,2.61]
[1761246626133,4.08933395,191.16,191.13,2.61]
[1761246626334,4.08933395,191.18,191.13,2.61]
[1761246626534,4.08933395,191.17,191.13,2.61]
[1761246626733,4.08933395,191.16,191.13,2.61]
[1761246626933,4.08933395,191.18,191.16,4.7067]
[1761246627330,2.86,191.2,191.16,4.7067]
[1761246627331,4.08933395,191.19,191.16,2.78]
[1761246627530,4.08933395,191.18,191.16,2.78]
[1761246627832,4.08933395,191.19,191.17,4.7064]
[1761246628136,6.94933395,191.2,191.17,4.7064]
[1761246628340,4.08933395,191.19,191.17,4.7064]
[1761246629530,2.86,191.2,191.17,4.7064]
[1761246629737,2.86,191.2,191.18,4.7062]
[1761246630036,6.94933395,191.2,191.18,4.7062]
[1761246630236,4.08933395,191.19,191.18,4.7062]
[1761246630825,2.86,191.2,191.18,4.7062]
[1761246631228,4.05664272,191.23,191.11,2.73871147]
[1761246631229,2.71,191.23,191.2,4.7057]
[1761246631535,6.79699756,191.22,191.2,4.7057]
[1761246631736,4.08699756,191.21,191.2,4.7057]
[1761246632734,7.58416968,191.26,191.21,4.7054]
[1761246633043,10.85121312,191.25,191.19,2.79]
[1761246633241,4.0857788,191.24,191.19,2.79]
[1761246633730,104.59377953,191.27,191.23,2.79]
[1761246633937,8.97201186,191.26,191.23,2.79]
[1761246634638,8.97201186,191.26,191.25,4.7046]
[1761246635133,6.78484033,191.28,191.26,4.7042]
[1761246635337,11.67385487,191.28,191.26,4.7042]
[1761246635537,8.96385487,191.27,191.26,4.7042]
[1761246635736,4.07484033,191.27,191.26,4.7042]
[1761246636035,2.71,191.28,191.26,4.7042]
[1761246637837,2.71,191.3,191.28,4.7038]
[1761246640837,2.71,191.29,191.25,4.5012458]
[1761246641041,2.71,191.26,191.25,4.5012458]
[1761246641343,2.71,191.28,191.22,2.79]
[1761246641835,2.71,191.28,191.17,9.4131]
[1761246642036,2.71,191.28,191.18,2.79]
[1761246643036,2.73871147,191.3,191.19,2.79]
[1761246643435,2.71,191.32,191.19,2.73871147]
[1761246643637,8.9291328,191.32,191.2,2.79]
[1761246643843,2.71,191.31,191.21,2.79]
[1761246644743,2.71,191.31,191.26,4.7042]
[1761246644938,2.71,191.3,191.26,4.7042]
[1761246645339,2.71,191.3,191.27,4.704]
[1761246647039,2.71,191.3,191.28,4.7037]
[1761246653449,8.92212303,191.32,191.2,2.79]
[1761246653450,2.71,191.28,191.2,2.79]
[1761246653951,2.71,191.28,191.26,4.7043]
[1761246654655,2.71,191.28,191.24,4.7047]
[1761246655155,2.71,191.28,191.22,2.79]
[1761246655950,2.71,191.28,191.25,4.7045]
[1761246656957,2.71,191.28,191.26,4.7042]
[1761246658646,5.44871147,191.3,191.27,2.79]
[1761246658855,10.24624277,191.3,191.27,2.79]
[1761246659065,5.44871147,191.3,191.27,2.79]
[1761246660054,14.30836654,191.3,191.28,4.7036]
[1761246660357,4.06068955,191.29,191.28,4.7036]
[1761246660649,2.71,191.3,191.28,4.7036]
[1761246660858,2.88,191.3,191.29,4.7035]
[1761246662758,6.94068955,191.3,191.29,4.7035]
[1761246665062,11.74542211,191.3,191.29,4.7035]
[1761246665563,6.94068955,191.3,191.29,4.7035]
[1761246665959,11.74542211,191.3,191.29,4.7035]
[1761246666254,6.94068955,191.3,191.29,4.7035]
[1761246666459,11.74542211,191.3,191.29,4.7035]
[1761246666959,6.94068955,191.3,191.29,4.7035]
[1761246667153,11.74542211,191.3,191.29,4.7035]
[1761246667349,6.94068955,191.3,191.29,4.7035]
[1761246667557,11.74542211,191.3,191.29,4.7035]
[1761246667856,4.06068955,191.3,191.29,7.4935]
[1761246668563,8.86542211,191.3,191.29,4.7035]
[1761246668761,11.74542211,191.3,191.29,4.7035]
[1761246669864,6.94068955,191.3,191.29,4.7035]
[1761246670361,11.74542211,191.3,191.29,4.7035]
[1761246672157,8.86542211,191.3,191.29,4.7035]
[1761246672656,11.74542211,191.3,191.29,4.7035]
[1761246673157,11.76784765,191.3,191.29,4.7035]
[1761246674966,8.88784765,191.3,191.29,4.7035]
[1761246675568,8.88784765,191.3,191.29,7.4935]
[1761246675969,8.88784765,191.3,191.29,4.7035]
[1761246676267,4.06068955,191.3,191.29,4.7035]
[1761246676465,8.88784765,191.3,191.29,4.7035]
[1761246676865,8.88784765,191.3,191.29,7.4935]
[1761246683478,11.76784765,191.3,191.27,7.494]
[1761246683671,2.88,191.27,191.2,2.79]
[1761246683861,4.08838966,191.26,191.2,2.79]
[1761246684064,4.08838966,191.25,191.24,4.7048]
[1761246684467,4.8331839,191.27,191.26,4.7044]
[1761246684675,8.92144004,191.27,191.26,4.7044]
[1761246684872,11.80144004,191.27,191.26,4.7044]
[1761246686570,8.92144004,191.27,191.26,4.7044]
[1761246687171,8.92144004,191.27,191.26,7.3644]
[1761246688275,4.08825614,191.27,191.26,7.3644]
[1761246693879,4.08825614,191.28,191.27,2.64]
[1761246694781,4.85555085,191.34,191.28,2.64]
[1761246695078,7.59371816,191.33,191.28,2.64]
[1761246695274,2.83,191.33,191.31,4.7031]
[1761246695867,2.83,191.33,191.31,7.3431]
[1761246697973,4.75659261,191.36,191.33,2.64]
[1761246698377,4.75659261,191.37,191.33,2.64]
[1761246698779,9.33544315,191.38,191.33,2.64]
[1761246698981,9.33544315,191.38,191.34,4.7023]
[1761246699180,9.33544315,191.38,191.34,7.3423]
[1761246699778,2.83,191.37,191.35,7.342]
[1761246700183,2.83,191.37,191.35,4.702]
[1761246700686,2.83,191.37,191.35,7.342]
[1761246702886,6.497426,191.4,191.35,7.342]
[1761246702887,2.83,191.39,191.36,4.7018]
[1761246703086,7.57857546,191.39,191.36,4.7018]
[1761246703382,2.83,191.39,191.36,7.3418]
[1761246703987,2.83,191.39,191.37,4.7015]
[1761246704484,2.83,191.4,191.39,4.7011]
[1761246704684,6.60440139,191.45,191.4,2.64]
[1761246704880,7.5767155,191.44,191.4,2.64]
[1761246705080,4.7467155,191.43,191.4,2.64]
[1761246705284,2.83,191.43,191.4,2.64]
[1761246705588,7.5767155,191.43,191.4,2.64]
[1761246705784,2.83,191.43,191.37,1.74885054]
[1761246705985,4.57885054,191.43,191.36,2.64]
[1761246706988,2.83,191.42,191.39,4.701]
[1761246707193,2.83,191.42,191.36,2.64]
[1761246708093,2.83,191.42,191.4,4.7008]
[1761246708395,1.74885054,191.41,191.36,2.64]
[1761246708590,2.83,191.4,191.36,2.64]
[1761246709092,4.57885054,191.41,191.39,4.701]
[1761246709390,4.57885054,191.41,191.36,2.64]
[1761246709391,2.83,191.4,191.36,2.64]
[1761246710185,2.83,191.4,191.38,4.7013]
[1761246713689,1.74885054,191.39,191.38,4.7013]
[1761246714782,1.74885054,191.41,191.38,2.64]
[1761246716094,1.74885054,191.41,191.4,4.7008]
[1761246716794,4.03334,191.46,191.33,1.74885054]
[1761246716795,1.74885054,191.43,191.41,7.3405]
[1761246717089,2.83,191.45,191.41,7.3405]
[1761246717090,2.83,191.45,191.41,2.64]
[1761246717293,1.74885054,191.44,191.41,2.64]
[1761246718096,1.74885054,191.44,191.42,7.3402]
[1761246718488,2.83,191.47,191.42,2.64]
[1761246718885,1.74885054,191.48,191.46,4.6992]
[1761246719199,2.78,191.48,191.46,4.6992]
[1761246719400,4.52885054,191.48,191.46,4.6992]
[1761246719790,1.74885054,191.48,191.46,7.4192]
[1761246721590,4.52885054,191.48,191.46,4.6992]
[1761246721894,1.74885054,191.52,191.5,4.6984]
[1761246722097,2.78,191.51,191.42,2.72]
[1761246722300,1.74885054,191.49,191.42,2.72]
[1761246722603,4.52885054,191.49,191.47,4.699]
[1761246723695,1.74885054,191.49,191.47,4.699]
[1761246723905,1.74885054,191.49,191.48,2.72]
[1761246724500,4.52885054,191.51,191.49,4.6987]
[1761246725700,2.78,191.51,191.49,4.6987]
[1761246726204,1.74885054,191.51,191.46,4.6993]
[1761246726398,2.78,191.5,191.46,7.4193]
[1761246727401,2.78,191.5,191.47,4.699]
[1761246729993,2.78,191.5,191.47,7.419]
[1761246736307,2.78,191.5,191.44,2.72]
[1761246736506,2.78,191.5,191.39,2.72]
[1761246737109,2.78,191.49,191.38,2.72657606]
[1761246737300,2.78,191.49,191.39,2.72]
[1761246737506,2.78,191.52,191.39,2.72]
[1761246737705,2.78,191.52,191.42,2.72]
[1761246738118,6.8095382,191.52,191.42,2.72]
[1761246738915,4.0295382,191.52,191.42,2.72]
[1761246739121,2.78,191.51,191.47,4.6992]
[1761246739315,2.78,191.5,191.47,7.4192]
[1761246739519,2.78,191.5,191.47,2.72]
[1761246740216,2.78,191.5,191.41,5.44657606]
[1761246740413,2.78,191.5,191.42,2.72]
[1761246741324,2.78,191.49,191.42,2.72]
[1761246742224,6.81262968,191.49,191.42,2.72]
[1761246742425,2.78,191.48,191.42,2.72]
[1761246743121,2.78,191.47,191.45,4.6996]
[1761246743629,2.78,191.47,191.38,2.72]
[1761246744422,2.78,191.47,191.44,4.6998]
[1761246744623,2.78,191.46,191.44,4.6998]
[1761246745223,2.78,191.49,191.44,7.4198]
[1761246745432,2.78,191.48,191.45,4.6996]
[1761246746531,4.03988086,191.48,191.45,4.6996]
[1761246746731,2.72,191.47,191.45,4.6996]
[1761246747537,6.75988086,191.47,191.45,4.6996]
[1761246747738,2.72,191.47,191.45,4.6996]
[1761246747927,4.04278455,191.46,191.37,2.73]
[1761246748135,2.72,191.44,191.37,2.73]
[1761246748336,11.45887334,191.44,191.37,2.73]
[1761246748532,4.04278455,191.43,191.37,2.73]
[1761246748733,11.54502193,191.44,191.37,2.73]
[1761246748937,6.84278455,191.43,191.4,4.7008]
[1761246749128,2.8,191.43,191.4,4.7008]
[1761246749326,2.8,191.42,191.4,4.7008]
[1761246751842,2.8,191.41,191.38,4.7013]
[1761246752835,2.8,191.41,191.38,7.5113]
[1761246754141,2.8,191.41,191.39,4.701]
[1761246756341,2.8,191.41,191.38,2.81]
[1761246756538,5.52657606,191.42,191.38,2.81]
[1761246756739,9.56639854,191.42,191.38,2.81]
[1761246756938,2.8,191.41,191.38,2.81]
[1761246757238,2.8,191.41,191.39,7.5111]
[1761246758634,2.8,191.45,191.41,7.5105]
[1761246758837,2.8,191.45,191.42,2.81]
[1761246759038,6.84046882,191.45,191.42,2.81]
[1761246759441,2.8,191.44,191.34,2.81]
[1761246760043,2.8,191.44,191.36,2.81]
[1761246760044,2.8,191.43,191.36,2.81]
[1761246760347,11.62678237,191.43,191.36,2.81]
[1761246760647,4.04046882,191.42,191.36,2.81]
[1761246760840,6.84046882,191.43,191.36,2.81]
[1761246761041,2.8,191.42,191.38,7.5113]
[1761246761237,2.8,191.42,191.38,2.81]
[1761246761434,6.84046882,191.42,191.38,2.81]
[1761246761647,2.8,191.41,191.38,2.81]
[1761246763048,2.8,191.41,191.39,4.701]
[1761246764743,2.8,191.41,191.35,2.81]
[1761246764944,2.8,191.4,191.35,2.81]
[1761246765943,2.8,191.4,191.35,4.702]
[1761246766144,2.8,191.4,191.36,2.81]
[1761246767048,2.8,191.4,191.36,7.5118]
[1761246768647,2.8,191.4,191.37,4.7015]
[1761246771250,4.04046882,191.41,191.38,7.5112]
[1761246771652,9.56704488,191.42,191.38,7.5112]
[1761246771852,4.04046882,191.41,191.38,7.5112]
[1761246772052,6.84046882,191.41,191.38,7.5112]
[1761246772256,2.8,191.43,191.39,2.81]
[1761246772956,6.83824306,191.43,191.39,2.81]
[1761246773552,2.8,191.42,191.39,2.81]
[1761246773753,4.03824306,191.43,191.41,4.7006]
[1761246773947,4.03824306,191.44,191.36,2.81]
[1761246774152,2.8,191.45,191.36,2.81]
[1761246775952,2.8,191.45,191.41,4.7004]
[1761246776758,2.8,191.45,191.41,7.5104]
[1761246777253,6.83824306,191.45,191.41,7.5104]
[1761246777458,6.83824306,191.44,191.41,7.5104]
[1761246777660,2.8,191.44,191.41,7.5104]
[1761246779347,6.84348052,191.44,191.41,7.5104]
[1761246779553,2.8,191.44,191.41,7.5104]
[1761246779851,6.84472521,191.44,191.41,7.5104]
[1761246780055,2.8,191.44,191.42,4.7003]
[1761246780249,6.84451092,191.44,191.42,4.7003]
[1761246780456,2.8,191.44,191.42,4.7003]
[1761246780651,11.63155677,191.44,191.42,4.7003]
[1761246780856,2.8,191.44,191.42,4.7003]
[1761246781755,11.71744719,191.44,191.42,4.7003]
[1761246781951,2.8,191.44,191.42,4.7003]
[1761246782956,11.71516788,191.44,191.42,4.7003]
[1761246783156,2.8,191.44,191.42,4.7003]
[1761246783959,7.47305288,191.43,191.42,4.7003]
[1761246784260,2.6,191.42,191.4,4.7008]
[1761246784459,11.51743063,191.42,191.4,4.7008]
[1761246784661,2.6,191.42,191.4,7.4608]
[1761246784860,2.6,191.45,191.41,4.7005]
[1761246785159,8.90790807,191.46,191.41,4.7005]
[1761246785160,2.6,191.43,191.41,4.7005]
[1761246785358,8.90790807,191.42,191.41,4.7005]
[1761246785754,8.90790807,191.42,191.41,7.4605]
[1761246787864,8.90790807,191.42,191.4,2.76]
[1761246788067,8.90790807,191.41,191.4,2.76]
[1761246788260,11.50790807,191.41,191.39,4.701]
[1761246788466,2.6,191.41,191.39,4.701]
[1761246788764,2.6,191.41,191.39,7.461]
[1761246789167,2.6,191.39,191.37,4.7015]
[1761246791767,8.92963735,191.38,191.35,7.462]
[1761246791969,2.72657606,191.42,191.32,2.76]
[1761246791970,2.6,191.36,191.32,2.76]
[1761246792368,8.93010293,191.38,191.32,2.76]
[1761246792675,11.53010293,191.37,191.32,2.76]
[1761246792964,2.6,191.37,191.33,4.7025]
[1761246793165,2.6,191.37,191.34,2.76]
[1761246793973,2.6,191.37,191.34,7.4622]
[1761246794570,2.6,191.37,191.33,2.76]
[1761246794765,1.74802864,191.35,191.33,2.76]
[1761246794965,2.6,191.36,191.33,2.76]
[1761246795178,4.84292337,191.4,191.31,2.76]
[1761246795473,2.6,191.42,191.31,2.76]
[1761246795474,4.34802864,191.38,191.31,2.76]
[1761246795668,8.93038545,191.37,191.31,2.76]
[1761246795870,8.93038545,191.36,191.31,2.76]
[1761246796059,4.34802864,191.38,191.31,2.76]
[1761246796372,8.92881051,191.37,191.31,2.76]